[Event "Late-Titled-Tuesday-Blitz-April-23-2024"]
[Site "Chess.com"]
[Date "2024.04.23"]
[Round "8"]
[White "Crazy_girl99"]
[Black "expii"]
[Result "1-0"]
[WhiteElo "2603"]
[BlackElo "2169"]
[TimeControl "180+1"]
[EndTime "15:27:11 PDT"]
[Termination "Crazy_girl99 won by resignation"]

1. e4 {[%clk 0:02:59.7]} 1... c5 {[%clk 0:02:52.4]} 2. Nf3 {[%clk 0:02:55.5]}
2... d6 {[%clk 0:02:50.3]} 3. d4 {[%clk 0:02:54.7]} 3... cxd4 {[%clk 0:02:51.2]}
4. Nxd4 {[%clk 0:02:54.8]} 4... Nf6 {[%clk 0:02:50.8]} 5. Nc3 {[%clk 0:02:55.2]}
5... g6 {[%clk 0:02:51.1]} 6. Be3 {[%clk 0:02:53.2]} 6... Bg7 {[%clk 0:02:50.9]}
7. f3 {[%clk 0:02:53.5]} 7... O-O {[%clk 0:02:48.9]} 8. Bc4 {[%clk 0:02:53.4]}
8... Nc6 {[%clk 0:02:47.2]} 9. Qd2 {[%clk 0:02:52.9]} 9... Bd7 {[%clk
0:02:46.6]} 10. Be2 {[%clk 0:02:51.8]} 10... Ne5 {[%clk 0:02:45.7]} 11. g4
{[%clk 0:02:47.6]} 11... Rc8 {[%clk 0:02:43.6]} 12. h4 {[%clk 0:02:46.8]} 12...
h5 {[%clk 0:02:39.9]} 13. gxh5 {[%clk 0:02:41.4]} 13... Nxh5 {[%clk 0:02:36.9]}
14. Rg1 {[%clk 0:02:40.3]} 14... Nc4 {[%clk 0:02:29.6]} 15. Bxc4 {[%clk
0:02:39.9]} 15... Rxc4 {[%clk 0:02:30.5]} 16. O-O-O {[%clk 0:02:39.9]} 16... e5
{[%clk 0:02:22.3]} 17. Nb3 {[%clk 0:02:27.6]} 17... Rc6 {[%clk 0:02:17.7]} 18.
Nd5 {[%clk 0:02:23]} 18... Be6 {[%clk 0:02:15.8]} 19. Bg5 {[%clk 0:02:19.6]}
19... f6 {[%clk 0:02:03.9]} 20. Bh6 {[%clk 0:02:18.5]} 20... Kh7 {[%clk
0:02:01.4]} 21. Bxg7 {[%clk 0:02:17.2]} 21... Kxg7 {[%clk 0:02:02.3]} 22. Qg2
{[%clk 0:02:12.9]} 22... Bf7 {[%clk 0:01:50.1]} 23. Kb1 {[%clk 0:01:59.6]} 23...
Nf4 {[%clk 0:01:34.4]} 24. Nxf4 {[%clk 0:01:56.9]} 24... exf4 {[%clk 0:01:35.3]}
25. Qd2 {[%clk 0:01:52.8]} 25... Bxb3 {[%clk 0:01:09.5]} 26. cxb3 {[%clk
0:01:50.6]} 26... Rc5 {[%clk 0:01:07.8]} 27. Qxf4 {[%clk 0:01:49.8]} 27... Re5
{[%clk 0:01:03.8]} 28. Qg4 {[%clk 0:01:42.4]} 28... Qe8 {[%clk 0:00:58.6]} 29.
Rxd6 {[%clk 0:01:41.9]} 29... Kh7 {[%clk 0:00:51.6]} 30. Rd7+ {[%clk 0:01:38.4]}
30... Rf7 {[%clk 0:00:49]} 31. Qxg6+ {[%clk 0:01:37.6]} 1-0

[Event "Late-Titled-Tuesday-Blitz-April-23-2024"]
[Site "Chess.com"]
[Date "2024.04.23"]
[Round "8"]
[White "ChristopherYoo"]
[Black "Firouzja2003"]
[Result "1/2-1/2"]
[WhiteElo "3018"]
[BlackElo "3114"]
[TimeControl "180+1"]
[EndTime "15:27:17 PDT"]
[Termination "Game drawn by repetition"]

1. e4 {[%clk 0:03:00.9]} 1... e5 {[%clk 0:02:59.8]} 2. Nf3 {[%clk 0:03:00.8]}
2... Nc6 {[%clk 0:03:00.7]} 3. Bb5 {[%clk 0:03:01.1]} 3... Nf6 {[%clk
0:03:00.6]} 4. O-O {[%clk 0:02:56.1]} 4... Nxe4 {[%clk 0:03:01.1]} 5. Re1 {[%clk
0:02:55.8]} 5... Nd6 {[%clk 0:03:01.6]} 6. Nxe5 {[%clk 0:02:56.1]} 6... Be7
{[%clk 0:03:02.4]} 7. Bf1 {[%clk 0:02:55.6]} 7... Nxe5 {[%clk 0:03:03.1]} 8.
Rxe5 {[%clk 0:02:56.1]} 8... O-O {[%clk 0:03:04]} 9. d4 {[%clk 0:02:56.7]} 9...
Bf6 {[%clk 0:03:04.9]} 10. Bd3 {[%clk 0:02:56.7]} 10... Re8 {[%clk 0:03:05.8]}
11. Bf4 {[%clk 0:02:32.8]} 11... b6 {[%clk 0:03:04.8]} 12. Nc3 {[%clk
0:01:49.4]} 12... Bb7 {[%clk 0:03:04.7]} 13. Qd2 {[%clk 0:01:18.5]} 13... Re6
{[%clk 0:03:04.4]} 14. Rxe6 {[%clk 0:00:51.3]} 14... dxe6 {[%clk 0:03:04.6]} 15.
Re1 {[%clk 0:00:44.2]} 15... h6 {[%clk 0:03:01.4]} 16. Be5 {[%clk 0:00:38.1]}
16... Bxe5 {[%clk 0:03:00.2]} 17. dxe5 {[%clk 0:00:37.3]} 17... Nc4 {[%clk
0:03:00]} 18. Qc1 {[%clk 0:00:37.6]} 18... Na5 {[%clk 0:02:59.9]} 19. Qf4 {[%clk
0:00:35.4]} 19... Qg5 {[%clk 0:02:58.3]} 20. Qxg5 {[%clk 0:00:34]} 20... hxg5
{[%clk 0:02:59.2]} 21. Rd1 {[%clk 0:00:30.3]} 21... Kf8 {[%clk 0:02:56.3]} 22.
Be4 {[%clk 0:00:27]} 22... Bxe4 {[%clk 0:02:55.6]} 23. Nxe4 {[%clk 0:00:27.9]}
23... Ke7 {[%clk 0:02:54.6]} 24. Nxg5 {[%clk 0:00:27.3]} 24... Nc4 {[%clk
0:02:54.8]} 25. b3 {[%clk 0:00:27.8]} 25... Nxe5 {[%clk 0:02:54.8]} 26. h3
{[%clk 0:00:25.1]} 26... c5 {[%clk 0:02:55]} 27. f4 {[%clk 0:00:23.4]} 27... Nc6
{[%clk 0:02:55.1]} 28. c3 {[%clk 0:00:19.1]} 28... f6 {[%clk 0:02:49.4]} 29. Nf3
{[%clk 0:00:19.1]} 29... Nd8 {[%clk 0:02:46.6]} 30. Kf2 {[%clk 0:00:19.1]} 30...
Nf7 {[%clk 0:02:47.4]} 31. Ke3 {[%clk 0:00:18.9]} 31... Nd6 {[%clk 0:02:48.3]}
32. g4 {[%clk 0:00:19.1]} 32... Rh8 {[%clk 0:02:46.3]} 33. h4 {[%clk 0:00:19.6]}
33... Nb5 {[%clk 0:02:46.9]} 34. c4 {[%clk 0:00:17.7]} 34... Nd4 {[%clk
0:02:47.3]} 35. h5 {[%clk 0:00:14.9]} 35... Nxf3 {[%clk 0:02:43.9]} 36. Kxf3
{[%clk 0:00:15.8]} 36... f5 {[%clk 0:02:44.3]} 37. a4 {[%clk 0:00:15.1]} 37...
a5 {[%clk 0:02:40.5]} 38. Kg3 {[%clk 0:00:13.9]} 38... fxg4 {[%clk 0:02:39.9]}
39. Kxg4 {[%clk 0:00:14]} 39... Rf8 {[%clk 0:02:37.7]} 40. Rd3 {[%clk
0:00:14.1]} 40... Rf6 {[%clk 0:02:37.8]} 41. Rd1 {[%clk 0:00:14.4]} 41... Rf8
{[%clk 0:02:38.1]} 42. Rd3 {[%clk 0:00:14.5]} 42... Rf6 {[%clk 0:02:38.3]} 43.
Rd1 {[%clk 0:00:15.2]} 43... Rf8 {[%clk 0:02:38.6]} 1/2-1/2

[Event "Late-Titled-Tuesday-Blitz-April-23-2024"]
[Site "Chess.com"]
[Date "2024.04.23"]
[Round "8"]
[White "Smoking_Crow"]
[Black "Naruna_Chan"]
[Result "1-0"]
[WhiteElo "2601"]
[BlackElo "2426"]
[TimeControl "180+1"]
[EndTime "15:27:25 PDT"]
[Termination "Smoking_Crow won by resignation"]

1. e4 {[%clk 0:03:00.9]} 1... c5 {[%clk 0:03:00]} 2. Nf3 {[%clk 0:03:00.5]} 2...
Nc6 {[%clk 0:03:00.6]} 3. c3 {[%clk 0:03:00.1]} 3... d6 {[%clk 0:02:57.7]} 4. d4
{[%clk 0:02:59.8]} 4... cxd4 {[%clk 0:02:57.3]} 5. cxd4 {[%clk 0:03:00.7]} 5...
g6 {[%clk 0:02:56.6]} 6. Nc3 {[%clk 0:03:00]} 6... Bg7 {[%clk 0:02:57.1]} 7. h3
{[%clk 0:03:00.2]} 7... Nf6 {[%clk 0:02:57.2]} 8. Be3 {[%clk 0:02:58.8]} 8...
O-O {[%clk 0:02:55.5]} 9. Qd2 {[%clk 0:02:57.2]} 9... e5 {[%clk 0:02:54]} 10. d5
{[%clk 0:02:57.1]} 10... Nb8 {[%clk 0:02:52.8]} 11. Bd3 {[%clk 0:02:56]} 11...
b6 {[%clk 0:02:50.3]} 12. g4 {[%clk 0:02:55.4]} 12... Ba6 {[%clk 0:02:50.3]} 13.
Bxa6 {[%clk 0:02:54.7]} 13... Nxa6 {[%clk 0:02:51.2]} 14. Qe2 {[%clk 0:02:49.9]}
14... Nc5 {[%clk 0:02:50.6]} 15. Bxc5 {[%clk 0:02:49.5]} 15... bxc5 {[%clk
0:02:51.5]} 16. O-O-O {[%clk 0:02:46.6]} 16... Rb8 {[%clk 0:02:50.5]} 17. Rdg1
{[%clk 0:02:46.2]} 17... Rb4 {[%clk 0:02:00.3]} 18. a3 {[%clk 0:02:40.9]} 18...
Rb3 {[%clk 0:01:56.4]} 19. Nd2 {[%clk 0:02:40.8]} 19... Rb7 {[%clk 0:01:47]} 20.
Nc4 {[%clk 0:02:39.2]} 20... Nd7 {[%clk 0:01:42.2]} 21. Nxd6 {[%clk 0:02:38.6]}
21... Rb8 {[%clk 0:01:36.6]} 22. Nc4 {[%clk 0:02:38.7]} 22... Nb6 {[%clk
0:01:32.9]} 23. Nxb6 {[%clk 0:02:38.3]} 23... Rxb6 {[%clk 0:01:25.5]} 24. h4
{[%clk 0:02:37]} 24... f5 {[%clk 0:01:12.1]} 25. gxf5 {[%clk 0:02:36.4]} 25...
gxf5 {[%clk 0:01:13]} 26. exf5 {[%clk 0:02:34.8]} 26... Rxf5 {[%clk 0:00:55.2]}
27. Rg4 {[%clk 0:02:33.4]} 27... Rg6 {[%clk 0:00:50.8]} 28. Rhg1 {[%clk
0:02:31]} 28... Rxg4 {[%clk 0:00:48.7]} 29. Qxg4 {[%clk 0:02:31.9]} 29... Qf6
{[%clk 0:00:47.4]} 30. Ne4 {[%clk 0:02:30.6]} 30... Qf8 {[%clk 0:00:45.2]} 31.
Kb1 {[%clk 0:02:25.3]} 31... Kh8 {[%clk 0:00:41.8]} 32. d6 {[%clk 0:02:24.7]}
32... Rf4 {[%clk 0:00:35.6]} 33. Qxg7+ {[%clk 0:02:18.7]} 33... Qxg7 {[%clk
0:00:34.9]} 34. Rxg7 {[%clk 0:02:19.6]} 34... Kxg7 {[%clk 0:00:32.6]} 35. d7
{[%clk 0:02:18.1]} 35... Rf8 {[%clk 0:00:29.7]} 36. Ng5 {[%clk 0:02:13.9]} 36...
Kf6 {[%clk 0:00:25.1]} 37. Nxh7+ {[%clk 0:02:13.2]} 1-0

[Event "Late-Titled-Tuesday-Blitz-April-23-2024"]
[Site "Chess.com"]
[Date "2024.04.23"]
[Round "8"]
[White "rezamahdavi2008"]
[Black "vi_pranav"]
[Result "0-1"]
[WhiteElo "2912"]
[BlackElo "3077"]
[TimeControl "180+1"]
[EndTime "15:27:41 PDT"]
[Termination "vi_pranav won by checkmate"]

1. e4 {[%clk 0:03:00.9]} 1... e5 {[%clk 0:03:00.3]} 2. Nf3 {[%clk 0:02:59.6]}
2... Nc6 {[%clk 0:03:00.4]} 3. Bc4 {[%clk 0:02:58.8]} 3... Nf6 {[%clk
0:02:59.9]} 4. d3 {[%clk 0:02:58.3]} 4... h6 {[%clk 0:03:00.1]} 5. a4 {[%clk
0:02:48.1]} 5... d6 {[%clk 0:02:59.1]} 6. a5 {[%clk 0:02:43.6]} 6... a6 {[%clk
0:02:59]} 7. Nc3 {[%clk 0:02:40.8]} 7... g6 {[%clk 0:02:58.1]} 8. O-O {[%clk
0:02:39]} 8... Bg7 {[%clk 0:02:58.1]} 9. h3 {[%clk 0:02:39.8]} 9... O-O {[%clk
0:02:57.9]} 10. Be3 {[%clk 0:02:40.5]} 10... Be6 {[%clk 0:02:57.8]} 11. Bxe6
{[%clk 0:02:40.9]} 11... fxe6 {[%clk 0:02:58.7]} 12. Ne2 {[%clk 0:02:41.8]}
12... Nh5 {[%clk 0:02:57.8]} 13. c3 {[%clk 0:02:42.5]} 13... Kh7 {[%clk
0:02:57.1]} 14. d4 {[%clk 0:02:31.2]} 14... d5 {[%clk 0:02:20.8]} 15. Nxe5
{[%clk 0:01:56.8]} 15... Nxe5 {[%clk 0:02:12.3]} 16. dxe5 {[%clk 0:01:57.7]}
16... Bxe5 {[%clk 0:02:12.8]} 17. Qb3 {[%clk 0:01:44]} 17... Qd6 {[%clk
0:01:50.7]} 18. Rad1 {[%clk 0:01:30.3]} 18... Rfd8 {[%clk 0:01:42.8]} 19. exd5
{[%clk 0:01:26.9]} 19... exd5 {[%clk 0:01:42.5]} 20. Qxb7 {[%clk 0:01:25.9]}
20... Rab8 {[%clk 0:01:38.6]} 21. Qa7 {[%clk 0:01:24]} 21... Rxb2 {[%clk
0:01:38.4]} 22. Nd4 {[%clk 0:01:20.1]} 22... Rf8 {[%clk 0:01:36.6]} 23. Nf3
{[%clk 0:01:14.4]} 23... Rxf3 {[%clk 0:01:19.7]} 24. gxf3 {[%clk 0:01:15.3]}
24... Bh2+ {[%clk 0:01:20.1]} 25. Kh1 {[%clk 0:01:09.8]} 25... Qg3 {[%clk
0:01:20.4]} 26. Qd4 {[%clk 0:00:42.8]} 26... Qxh3 {[%clk 0:01:15.6]} 27. Qg4
{[%clk 0:00:40]} 27... Ng3+ {[%clk 0:01:15.6]} 28. fxg3 {[%clk 0:00:38.1]} 28...
Qg2# {[%clk 0:01:15.5]} 0-1

[Event "Late-Titled-Tuesday-Blitz-April-23-2024"]
[Site "Chess.com"]
[Date "2024.04.23"]
[Round "8"]
[White "Stanbad1"]
[Black "Smiechu"]
[Result "1-0"]
[WhiteElo "2602"]
[BlackElo "2437"]
[TimeControl "180+1"]
[EndTime "15:28:05 PDT"]
[Termination "Stanbad1 won by resignation"]

1. d4 {[%clk 0:03:00.9]} 1... Nf6 {[%clk 0:02:52]} 2. Nc3 {[%clk 0:03:00.6]}
2... c5 {[%clk 0:02:49.9]} 3. d5 {[%clk 0:03:00.3]} 3... d6 {[%clk 0:02:49.8]}
4. e4 {[%clk 0:03:00.2]} 4... g6 {[%clk 0:02:49.2]} 5. Nf3 {[%clk 0:02:59.9]}
5... Bg7 {[%clk 0:02:49.3]} 6. Bc4 {[%clk 0:02:59.8]} 6... O-O {[%clk
0:02:47.6]} 7. O-O {[%clk 0:02:59.3]} 7... a6 {[%clk 0:02:46.5]} 8. a4 {[%clk
0:02:58.7]} 8... Bg4 {[%clk 0:02:46.2]} 9. h3 {[%clk 0:02:58.2]} 9... Bxf3
{[%clk 0:02:46.4]} 10. Qxf3 {[%clk 0:02:59.1]} 10... Nbd7 {[%clk 0:02:45.7]} 11.
Be2 {[%clk 0:02:59.3]} 11... e6 {[%clk 0:02:42.8]} 12. Rd1 {[%clk 0:02:55.4]}
12... Ne5 {[%clk 0:02:35.4]} 13. Qg3 {[%clk 0:02:55]} 13... Qe7 {[%clk
0:02:24.3]} 14. dxe6 {[%clk 0:02:53.2]} 14... fxe6 {[%clk 0:02:24]} 15. Bf4
{[%clk 0:02:51.3]} 15... Nfd7 {[%clk 0:02:18.7]} 16. Rd2 {[%clk 0:02:48.9]}
16... h6 {[%clk 0:02:00.4]} 17. Rad1 {[%clk 0:02:47.4]} 17... g5 {[%clk
0:02:00.6]} 18. Be3 {[%clk 0:02:47.2]} 18... Nf7 {[%clk 0:01:59]} 19. f4 {[%clk
0:02:40.8]} 19... Rab8 {[%clk 0:01:43.4]} 20. Bh5 {[%clk 0:02:38.2]} 20... gxf4
{[%clk 0:01:39.7]} 21. Bxf4 {[%clk 0:02:37.9]} 21... Nde5 {[%clk 0:01:03.4]} 22.
Bxf7+ {[%clk 0:02:31.9]} 22... Qxf7 {[%clk 0:00:58.7]} 23. Bxh6 {[%clk
0:02:28.8]} 23... Nc4 {[%clk 0:00:53.1]} 24. Re2 {[%clk 0:02:27.3]} 24... Kh7
{[%clk 0:00:51.5]} 25. Bxg7 {[%clk 0:02:26.9]} 25... Qxg7 {[%clk 0:00:51.7]} 26.
Qxg7+ {[%clk 0:02:27.1]} 26... Kxg7 {[%clk 0:00:51.7]} 27. b3 {[%clk 0:02:27.8]}
27... Ne5 {[%clk 0:00:37.9]} 28. Rxd6 {[%clk 0:02:27.8]} 28... Rfe8 {[%clk
0:00:38.1]} 29. Red2 {[%clk 0:02:26.1]} 29... b5 {[%clk 0:00:37.1]} 30. Rxa6
{[%clk 0:02:24.9]} 30... b4 {[%clk 0:00:34.2]} 31. Nb5 {[%clk 0:02:24.8]} 31...
c4 {[%clk 0:00:31.9]} 32. Nc7 {[%clk 0:02:24.5]} 32... Rec8 {[%clk 0:00:23.8]}
33. Nxe6+ {[%clk 0:02:24.4]} 33... Kg8 {[%clk 0:00:23.1]} 34. Rd5 {[%clk
0:02:23.6]} 34... cxb3 {[%clk 0:00:20.2]} 35. cxb3 {[%clk 0:02:24.5]} 35... Rc1+
{[%clk 0:00:19.4]} 36. Kh2 {[%clk 0:02:24.4]} 36... Nf7 {[%clk 0:00:14.6]} 37.
Nd4 {[%clk 0:02:22]} 37... Rd1 {[%clk 0:00:13.3]} 38. Nc6 {[%clk 0:02:21.7]}
38... Rxd5 {[%clk 0:00:10.4]} 39. exd5 {[%clk 0:02:22.6]} 39... Rf8 {[%clk
0:00:07.5]} 40. Nxb4 {[%clk 0:02:21.9]} 40... Kg7 {[%clk 0:00:07.8]} 41. d6
{[%clk 0:02:21.3]} 41... Rd8 {[%clk 0:00:07.8]} 42. Rb6 {[%clk 0:02:20.3]} 42...
Nxd6 {[%clk 0:00:07.7]} 43. Nc6 {[%clk 0:02:19.8]} 43... Rd7 {[%clk 0:00:06.4]}
44. Ne5 {[%clk 0:02:20.1]} 44... Rd8 {[%clk 0:00:05.9]} 45. a5 {[%clk
0:02:20.5]} 45... Nc8 {[%clk 0:00:05.7]} 46. Rb7+ {[%clk 0:02:20]} 46... Kf6
{[%clk 0:00:05.7]} 47. Nc4 {[%clk 0:02:20]} 47... Ne7 {[%clk 0:00:02.7]} 48. a6
{[%clk 0:02:19.7]} 48... Nc6 {[%clk 0:00:03]} 49. Rb6 {[%clk 0:02:18.4]} 1-0

[Event "Late-Titled-Tuesday-Blitz-April-23-2024"]
[Site "Chess.com"]
[Date "2024.04.23"]
[Round "8"]
[White "only_strong_moves"]
[Black "Mikhail_Golubev"]
[Result "1-0"]
[WhiteElo "2721"]
[BlackElo "2565"]
[TimeControl "180+1"]
[EndTime "15:28:08 PDT"]
[Termination "only_strong_moves won on time"]

1. d4 {[%clk 0:03:00.9]} 1... Nf6 {[%clk 0:02:57.9]} 2. c4 {[%clk 0:03:01.5]}
2... g6 {[%clk 0:02:56.8]} 3. Nc3 {[%clk 0:03:01.6]} 3... d6 {[%clk 0:02:54.5]}
4. e4 {[%clk 0:03:01.7]} 4... Bg7 {[%clk 0:02:54.2]} 5. Nf3 {[%clk 0:03:01.2]}
5... O-O {[%clk 0:02:53.9]} 6. Be2 {[%clk 0:03:01.9]} 6... e5 {[%clk 0:02:53.7]}
7. Be3 {[%clk 0:03:02]} 7... h6 {[%clk 0:02:51.4]} 8. dxe5 {[%clk 0:02:55]} 8...
Ng4 {[%clk 0:02:49]} 9. exd6 {[%clk 0:02:44.2]} 9... Nxe3 {[%clk 0:02:47.9]} 10.
fxe3 {[%clk 0:02:45.1]} 10... cxd6 {[%clk 0:02:42]} 11. O-O {[%clk 0:02:45.5]}
11... Nc6 {[%clk 0:02:36.8]} 12. Qd2 {[%clk 0:02:43.5]} 12... Be6 {[%clk
0:01:48.6]} 13. Nd4 {[%clk 0:02:42]} 13... Ne5 {[%clk 0:01:47.3]} 14. b3 {[%clk
0:02:38.3]} 14... a6 {[%clk 0:01:29.6]} 15. Rad1 {[%clk 0:02:38.7]} 15... Qa5
{[%clk 0:01:18.4]} 16. Nd5 {[%clk 0:02:37]} 16... Qxd2 {[%clk 0:01:17.1]} 17.
Rxd2 {[%clk 0:02:37.9]} 17... Rfd8 {[%clk 0:01:07.1]} 18. Nc7 {[%clk 0:02:30]}
18... Rac8 {[%clk 0:01:05.7]} 19. Ncxe6 {[%clk 0:02:30]} 19... fxe6 {[%clk
0:01:04.9]} 20. Nxe6 {[%clk 0:02:30.9]} 20... Rd7 {[%clk 0:01:00.9]} 21. Nf4
{[%clk 0:02:31.6]} 21... h5 {[%clk 0:00:52]} 22. Nd5 {[%clk 0:02:31.4]} 22...
Rcd8 {[%clk 0:00:47.4]} 23. a4 {[%clk 0:02:28.3]} 23... a5 {[%clk 0:00:43.8]}
24. Bd1 {[%clk 0:02:27.9]} 24... Rf7 {[%clk 0:00:36.6]} 25. Rf4 {[%clk
0:02:25.9]} 25... Bh6 {[%clk 0:00:34.8]} 26. Rxf7 {[%clk 0:02:25.6]} 26... Kxf7
{[%clk 0:00:33.7]} 27. h4 {[%clk 0:02:16.8]} 27... Ke6 {[%clk 0:00:25.9]} 28. g3
{[%clk 0:02:16.6]} 28... Rf8 {[%clk 0:00:20.9]} 29. Nf4+ {[%clk 0:02:17.2]}
29... Ke7 {[%clk 0:00:16.1]} 30. Rd5 {[%clk 0:02:14.1]} 30... b6 {[%clk
0:00:08.3]} 31. Kg2 {[%clk 0:02:09.8]} 31... Rb8 {[%clk 0:00:04.9]} 32. Be2
{[%clk 0:02:06.6]} 32... Bg7 {[%clk 0:00:05]} 33. Rd1 {[%clk 0:02:04.5]} 33...
Bh8 {[%clk 0:00:05]} 34. Rf1 {[%clk 0:02:02.6]} 34... Bg7 {[%clk 0:00:04.7]} 35.
Nd5+ {[%clk 0:01:57.4]} 35... Ke6 {[%clk 0:00:05]} 36. Kh3 {[%clk 0:01:56.6]}
36... Bh8 {[%clk 0:00:04.4]} 37. g4 {[%clk 0:01:56.6]} 37... hxg4+ {[%clk
0:00:02.9]} 38. Bxg4+ {[%clk 0:01:57.5]} 38... Nxg4 {[%clk 0:00:02.6]} 39. Kxg4
{[%clk 0:01:58.4]} 39... Ke5 {[%clk 0:00:02.7]} 40. Rf4 {[%clk 0:01:58.2]} 40...
Ke6 {[%clk 0:00:01.9]} 41. Kf3 {[%clk 0:01:55.4]} 41... Ke5 {[%clk 0:00:02]} 42.
Rg4 {[%clk 0:01:55.4]} 1-0

[Event "Late-Titled-Tuesday-Blitz-April-23-2024"]
[Site "Chess.com"]
[Date "2024.04.23"]
[Round "8"]
[White "GelmanAlexander"]
[Black "Zampronha1971"]
[Result "1-0"]
[WhiteElo "2633"]
[BlackElo "2460"]
[TimeControl "180+1"]
[EndTime "15:28:15 PDT"]
[Termination "GelmanAlexander won by resignation"]

1. d4 {[%clk 0:03:00.9]} 1... Nf6 {[%clk 0:02:59.6]} 2. Nc3 {[%clk 0:03:00.8]}
2... d5 {[%clk 0:02:58.7]} 3. Bf4 {[%clk 0:03:00.8]} 3... a6 {[%clk 0:02:58.7]}
4. e3 {[%clk 0:03:01.1]} 4... e6 {[%clk 0:02:59.1]} 5. g4 {[%clk 0:03:00]} 5...
c5 {[%clk 0:02:57.6]} 6. g5 {[%clk 0:03:00.1]} 6... cxd4 {[%clk 0:02:55.3]} 7.
exd4 {[%clk 0:02:59.5]} 7... Nfd7 {[%clk 0:02:50.9]} 8. Nf3 {[%clk 0:02:58.7]}
8... Nc6 {[%clk 0:02:48.6]} 9. h4 {[%clk 0:02:58.3]} 9... b5 {[%clk 0:02:44.7]}
10. h5 {[%clk 0:02:54.3]} 10... Nb6 {[%clk 0:02:42.5]} 11. Ne2 {[%clk
0:02:44.1]} 11... Bd6 {[%clk 0:02:41.5]} 12. c3 {[%clk 0:02:37.3]} 12... Bxf4
{[%clk 0:02:32.4]} 13. Nxf4 {[%clk 0:02:37]} 13... Nc4 {[%clk 0:02:32.9]} 14.
Bxc4 {[%clk 0:02:34.7]} 14... bxc4 {[%clk 0:02:32.3]} 15. Qe2 {[%clk 0:02:31.1]}
15... Qd6 {[%clk 0:02:27.9]} 16. Ne5 {[%clk 0:02:21.8]} 16... Nxe5 {[%clk
0:02:24.5]} 17. dxe5 {[%clk 0:02:22]} 17... Qb6 {[%clk 0:02:22]} 18. O-O-O
{[%clk 0:02:21.4]} 18... Rb8 {[%clk 0:02:20.8]} 19. Rd2 {[%clk 0:02:19.9]} 19...
a5 {[%clk 0:02:20.4]} 20. h6 {[%clk 0:02:16.9]} 20... g6 {[%clk 0:02:19.3]} 21.
Qe3 {[%clk 0:02:10.1]} 21... Qxe3 {[%clk 0:02:17.2]} 22. fxe3 {[%clk 0:02:11]}
22... Ke7 {[%clk 0:02:09.1]} 23. Ne2 {[%clk 0:02:10]} 23... Bd7 {[%clk
0:02:08.5]} 24. Nd4 {[%clk 0:02:08.4]} 24... Rb7 {[%clk 0:02:06.7]} 25. b3
{[%clk 0:01:56]} 25... Rc8 {[%clk 0:01:59.1]} 26. Kb2 {[%clk 0:01:52.2]} 26...
Rb6 {[%clk 0:01:49.7]} 27. Rb1 {[%clk 0:01:50]} 27... Rb7 {[%clk 0:01:47.4]} 28.
Rdd1 {[%clk 0:01:49.1]} 28... Rb6 {[%clk 0:01:45.2]} 29. Kc2 {[%clk 0:01:49.2]}
29... cxb3+ {[%clk 0:01:33.9]} 30. axb3 {[%clk 0:01:49.2]} 30... a4 {[%clk
0:01:31.5]} 31. Ra1 {[%clk 0:01:34.9]} 31... axb3+ {[%clk 0:01:28.8]} 32. Kb2
{[%clk 0:01:35.4]} 32... Rb7 {[%clk 0:01:21.7]} 33. Ra3 {[%clk 0:01:32.5]} 33...
Rcb8 {[%clk 0:01:14.3]} 34. Rda1 {[%clk 0:01:31.7]} 34... Bb5 {[%clk 0:01:11.2]}
35. Ra7 {[%clk 0:01:09.2]} 35... Ke8 {[%clk 0:01:08.4]} 36. Rxb7 {[%clk
0:01:06]} 36... Rxb7 {[%clk 0:01:09.3]} 37. Ra8+ {[%clk 0:01:01.4]} 37... Ke7
{[%clk 0:01:07.2]} 38. Rh8 {[%clk 0:00:54]} 38... Bc4 {[%clk 0:01:07.6]} 39.
Rxh7 {[%clk 0:00:48.1]} 39... Rb8 {[%clk 0:01:01.4]} 40. Nc6+ {[%clk 0:00:47.1]}
1-0

[Event "Late-Titled-Tuesday-Blitz-April-23-2024"]
[Site "Chess.com"]
[Date "2024.04.23"]
[Round "8"]
[White "reevecanada"]
[Black "TheAlienParty"]
[Result "0-1"]
[WhiteElo "2609"]
[BlackElo "2457"]
[TimeControl "180+1"]
[EndTime "15:28:20 PDT"]
[Termination "TheAlienParty won by resignation"]

1. e4 {[%clk 0:02:56.3]} 1... e5 {[%clk 0:02:52.7]} 2. Nf3 {[%clk 0:02:54]} 2...
Nc6 {[%clk 0:02:52.3]} 3. d4 {[%clk 0:02:52.7]} 3... exd4 {[%clk 0:02:52]} 4.
Nxd4 {[%clk 0:02:53.6]} 4... Bc5 {[%clk 0:02:51.7]} 5. Nb3 {[%clk 0:02:53.6]}
5... Bb6 {[%clk 0:02:51]} 6. Nc3 {[%clk 0:02:52.4]} 6... Nf6 {[%clk 0:02:50.8]}
7. Qe2 {[%clk 0:02:49.7]} 7... O-O {[%clk 0:02:49.9]} 8. Be3 {[%clk 0:02:47.6]}
8... Re8 {[%clk 0:02:43.3]} 9. f3 {[%clk 0:02:45.3]} 9... Bxe3 {[%clk
0:02:27.9]} 10. Qxe3 {[%clk 0:02:43.5]} 10... d5 {[%clk 0:02:26.9]} 11. O-O-O
{[%clk 0:02:43.4]} 11... a5 {[%clk 0:02:07.7]} 12. Bb5 {[%clk 0:02:39]} 12...
Qe7 {[%clk 0:01:40]} 13. Nxd5 {[%clk 0:02:29.8]} 13... Nxd5 {[%clk 0:01:39.9]}
14. Rxd5 {[%clk 0:02:30.5]} 14... a4 {[%clk 0:01:40.3]} 15. Nd4 {[%clk
0:02:24.3]} 15... Bd7 {[%clk 0:01:16.9]} 16. Bxc6 {[%clk 0:02:18.7]} 16... bxc6
{[%clk 0:01:16.2]} 17. Rg5 {[%clk 0:02:16.2]} 17... h6 {[%clk 0:01:12.8]} 18.
Rg3 {[%clk 0:02:12.2]} 18... Qf6 {[%clk 0:01:12.1]} 19. Rd1 {[%clk 0:02:02.3]}
19... a3 {[%clk 0:01:11.5]} 20. c3 {[%clk 0:01:56.2]} 20... axb2+ {[%clk
0:01:10.6]} 21. Kb1 {[%clk 0:01:53.8]} 21... c5 {[%clk 0:01:08.3]} 22. Ne2
{[%clk 0:01:50.1]} 22... Be6 {[%clk 0:01:07.4]} 23. Qxc5 {[%clk 0:01:43.8]}
23... Rxa2 {[%clk 0:00:59.5]} 24. Qd4 {[%clk 0:01:34.4]} 24... Qxd4 {[%clk
0:00:52.4]} 25. Nxd4 {[%clk 0:01:35.3]} 25... Rb8 {[%clk 0:00:52.2]} 26. Rxg7+
{[%clk 0:01:30.7]} 26... Kh8 {[%clk 0:00:47.5]} 27. Nb3 {[%clk 0:00:51.5]} 27...
Bxb3 {[%clk 0:00:30.6]} 28. Rxf7 {[%clk 0:00:47.8]} 28... Bxf7 {[%clk
0:00:28.8]} 0-1